bitfinex/quotes_BTCUSD_20250908
["timestamp","ask_amount","ask_price","bid_price","bid_amount"]
[1757364943406,0.30174559,112030.0,112020.0,0.21817896]
[1757364945207,0.30174559,112030.0,112020.0,0.3967185]
[1757364946437,0.30174559,112030.0,112020.0,0.21817896]
[1757364947149,0.30174559,112030.0,112020.0,0.22029896]
[1757364949887,0.30174559,112030.0,112020.0,0.21817896]
[1757364950505,0.30174559,112030.0,112020.0,0.22029896]
[1757364950866,0.29869559,112030.0,112020.0,0.22029896]
[1757364951069,0.30177559,112030.0,112020.0,0.22029896]
[1757364952419,0.30177559,112030.0,112020.0,0.3988385]
[1757364956759,0.30177559,112030.0,112020.0,0.3967185]
[1757364958095,0.30177559,112030.0,112020.0,0.21817896]
[1757364960459,0.30177559,112030.0,112020.0,0.3967185]
[1757364961819,0.30177559,112030.0,112020.0,0.21817896]
[1757364962232,0.30177559,112030.0,112020.0,0.22029896]
[1757364963898,0.30177559,112030.0,112020.0,0.3988385]
[1757364964104,0.30177559,112030.0,112020.0,0.22029896]
[1757364964911,0.30177559,112030.0,112020.0,0.21817896]
[1757364965159,0.70333782,112030.0,112020.0,0.06969896]
[1757364965408,0.70333782,112030.0,112020.0,0.21809896]
[1757364971623,1.04333782,112030.0,112020.0,0.06969896]
[1757364971907,1.0971599,112030.0,112020.0,0.21809896]
[1757364973555,1.06427664,112030.0,112020.0,0.21809896]
[1757364974527,1.15619263,112030.0,112020.0,0.21809896]
[1757364974734,1.48886887,112030.0,112020.0,0.06969896]
[1757364974927,1.48886887,112030.0,112020.0,0.21809896]
[1757364975812,1.48886887,112030.0,112020.0,0.06969896]
[1757364976028,1.52175213,112030.0,112020.0,0.06969896]
[1757364976200,1.52175213,112030.0,112020.0,0.21809896]
[1757364977327,1.61366812,112030.0,112020.0,0.21809896]
[1757364977741,1.61466812,112030.0,112020.0,0.21709896]
[1757364978186,1.61666812,112030.0,112020.0,0.21809896]
[1757364980406,1.21529394,112030.0,112020.0,0.21809896]
[1757364984056,1.21529394,112030.0,112020.0,0.06969896]
[1757364984283,1.21529394,112030.0,112020.0,0.21809896]
[1757365007266,0.81354366,112030.0,112020.0,0.21809896]
[1757365007480,1.21529394,112030.0,112020.0,0.21809896]
[1757365011883,1.18241068,112030.0,112020.0,0.21809896]
[1757365022685,1.18241068,112030.0,112020.0,0.14953896]
[1757365026182,1.25241068,112030.0,112020.0,0.14953896]
[1757365027136,0.8506604,112030.0,112020.0,0.14953896]
[1757365027308,1.25241068,112030.0,112020.0,0.14953896]
[1757365038230,1.25091268,112030.0,112020.0,0.14953896]
[1757365040703,1.25091268,112030.0,112020.0,0.14941896]
[1757365042058,1.25091268,112030.0,112020.0,0.00113896]
[1757365042263,1.25091268,112030.0,112020.0,0.14941896]
[1757365042502,1.6526599,112030.0,112020.0,0.14941896]
[1757365050930,1.25091115,112030.0,112020.0,0.14941896]
[1757365053340,1.25055588,112030.0,112020.0,0.14941896]
[1757365059684,1.65230463,112030.0,112020.0,0.14941896]
[1757365060098,1.25055588,112030.0,112020.0,0.14941896]
[1757365064296,1.22752588,112030.0,112020.0,0.14941896]
[1757365065331,0.82577713,112030.0,112020.0,0.14941896]
[1757365065559,1.22752588,112030.0,112020.0,0.14941896]
[1757365065764,1.62927463,112030.0,112020.0,0.14941896]
[1757365067126,0.82577713,112030.0,112020.0,0.14941896]
[1757365067367,1.62927463,112030.0,112020.0,0.14941896]
[1757365075586,0.82577713,112030.0,112020.0,0.14941896]
[1757365075781,1.62927463,112030.0,112020.0,0.14941896]
[1757365079202,1.62927463,112030.0,112020.0,0.21793896]
[1757365088828,0.82577713,112030.0,112020.0,0.21793896]
[1757365089045,1.13560989,112030.0,112020.0,0.21793896]
[1757365090459,1.53735864,112030.0,112020.0,0.21793896]
[1757365093286,1.13560989,112030.0,112020.0,0.21793896]
[1757365095346,1.13525507,112030.0,112020.0,0.21793896]
[1757365096004,1.1980742,112030.0,112020.0,0.21793896]
[1757365097422,1.59982295,112030.0,112020.0,0.21793896]
[1757365098348,1.59982295,112030.0,112020.0,0.14941896]
[1757365100370,2.03922295,112030.0,112020.0,0.14941896]
[1757365102416,1.63745174,112030.0,112020.0,0.14941896]
[1757365102819,1.63745174,112030.0,112020.0,0.00113896]
[1757365103019,2.09479796,112030.0,112020.0,0.14820001]
[1757365106916,1.69307167,112030.0,112020.0,0.14820001]
[1757365121509,1.66227174,112030.0,112020.0,0.14820001]
[1757365124286,1.66227174,112030.0,112020.0,1e-08]
[1757365124497,1.66227174,112030.0,112020.0,0.14820001]
[1757365130713,1.66227174,112030.0,112020.0,1e-08]
[1757365130714,1.17290632,112030.0,112020.0,1e-08]
[1757365130923,1.17290632,112030.0,112020.0,0.14820001]
[1757365131130,1.57463261,112030.0,112020.0,0.14820001]
[1757365133013,1.57463261,112030.0,112020.0,1e-08]
[1757365133226,1.57463261,112030.0,112020.0,0.12816001]
[1757365133429,1.57463261,112030.0,112020.0,1e-08]
[1757365133640,1.57463261,112030.0,112020.0,0.14820001]
[1757365133890,1.6665486,112030.0,112020.0,0.14820001]
[1757365134731,1.62887489,112030.0,112020.0,1e-08]
[1757365134967,0.19954214,111980.0,111970.0,0.10614091]
[1757365135141,0.36327108,111980.0,111970.0,0.026]
[1757365135290,0.36327108,111980.0,111970.0,0.02808]
[1757365135494,0.27051931,111980.0,111970.0,0.03122]
[1757365135692,0.29731915,111980.0,111970.0,0.03122]
[1757365135899,0.11871583,111980.0,111970.0,0.20983927]
[1757365136104,0.02679984,111980.0,111970.0,0.20983927]
[1757365136312,0.20540316,111980.0,111970.0,0.2098856]
[1757365137238,0.20540316,111980.0,111970.0,0.2108856]
[1757365137657,0.20540316,111980.0,111970.0,0.00626633]
[1757365137863,0.20540316,111980.0,111970.0,0.15454633]
[1757365138066,0.29731915,111980.0,111970.0,0.15454633]
[1757365138283,0.29831915,111980.0,111970.0,0.15554633]
[1757365138462,0.29731915,111980.0,111970.0,0.15454633]
[1757365138833,0.29831915,111980.0,111970.0,0.15654633]
[1757365141421,0.3460098,111980.0,111970.0,0.00826633]
[1757365141626,0.75306609,111980.0,111970.0,0.15336633]
[1757365142580,0.70213544,111980.0,111970.0,0.15336633]
[1757365143493,1.06631426,111980.0,111970.0,0.00304633]
[1757365143705,1.06631426,111980.0,111970.0,0.15128633]
[1757365145082,1.06631426,111980.0,111970.0,0.15124633]
[1757365145303,1.04537544,111980.0,111970.0,0.15124633]
[1757365145663,1.15823025,111980.0,111970.0,0.15124633]
[1757365146047,1.19908273,111980.0,111970.0,0.15124633]
[1757365152112,1.19908273,111980.0,111970.0,0.00304633]
[1757365152330,1.19908273,111980.0,111970.0,0.15128633]
[1757365154972,1.19908273,111980.0,111970.0,0.00304633]
[1757365162750,0.17861927,111970.0,111960.0,0.14824]
[1757365162883,0.37052217,111970.0,111960.0,0.14824]
[1757365163249,0.36773125,111970.0,111960.0,0.14824]
[1757365163454,0.39454072,111970.0,111960.0,0.14824]
[1757365163881,0.79626701,111970.0,111960.0,0.14824]
[1757365164334,0.39454072,111970.0,111960.0,0.14824]
[1757365164546,0.7966719,111970.0,111960.0,0.14824]
[1757365164719,0.7966719,111970.0,111960.0,0.14924]
[1757365164882,0.7976719,111970.0,111960.0,0.14924]
[1757365168631,0.7926719,111970.0,111960.0,0.14924]
[1757365170359,0.29334473,111970.0,111960.0,0.15434]
[1757365170562,0.60653526,111970.0,111960.0,0.15434]
[1757365170766,0.62747408,111970.0,111960.0,0.15434]
[1757365180205,0.62747408,111970.0,111960.0,0.15122]
[1757365180441,0.63247408,111970.0,111960.0,0.00298]
[1757365180647,1.03460526,111970.0,111960.0,0.14924]
[1757365180798,1.12652125,111970.0,111960.0,0.14924]
[1757365181150,0.72439007,111970.0,111960.0,0.001]
[1757365181359,1.12652125,111970.0,111960.0,0.14924]
[1757365182324,1.12389588,111970.0,111960.0,0.14924]
[1757365182528,1.03197989,111970.0,111960.0,0.14924]
[1757365182893,0.62984871,111970.0,111960.0,0.001]
[1757365183075,0.62984871,111970.0,111960.0,0.14924]
[1757365183290,1.03197989,111970.0,111960.0,0.14924]
[1757365183898,1.07240972,111970.0,111960.0,0.14924]
[1757365184497,1.03197989,111970.0,111960.0,0.14932]
[1757365186421,1.03197989,111970.0,111960.0,0.001]
[1757365186631,1.03197989,111970.0,111960.0,0.14932]
[1757365188383,0.62984871,111970.0,111960.0,0.001]
[1757365188597,1.03197989,111970.0,111960.0,0.14928]
[1757365188828,1.12389588,111970.0,111960.0,0.14928]
[1757365190476,0.7217647,111970.0,111960.0,0.14928]
[1757365190694,1.12389588,111970.0,111960.0,0.14928]
[1757365192469,1.12389588,111970.0,111960.0,0.001]
[1757365192740,1.12389588,111970.0,111960.0,0.14936]
[1757365194535,1.52602706,111970.0,111960.0,0.14936]
[1757365194914,1.55283653,111970.0,111960.0,0.14936]
[1757365195342,1.15070535,111970.0,111960.0,0.14936]
[1757365196477,1.55283653,111970.0,111960.0,0.14936]
[1757365197001,1.15070535,111970.0,111960.0,0.14936]
[1757365197196,1.15070535,111970.0,111960.0,0.14932]
[1757365198463,1.15070535,111970.0,111960.0,0.001]
[1757365198669,1.15070535,111970.0,111960.0,0.14932]
[1757365199531,1.05878936,111970.0,111960.0,0.14932]
[1757365199747,0.62484871,111970.0,111960.0,0.1544]
[1757365199955,0.60390989,111970.0,111960.0,0.15579238]
[1757365200397,0.60890989,111970.0,111960.0,0.00298]
[1757365200633,1.01104107,111970.0,111960.0,0.14932]
[1757365200826,1.05497947,111970.0,111960.0,0.14932]
[1757365202424,0.65284829,111970.0,111960.0,0.001]
[1757365202669,1.05497947,111970.0,111960.0,0.14936]
[1757365203405,1.03197989,111970.0,111960.0,0.001]
[1757365203632,1.03197989,111970.0,111960.0,0.14936]
[1757365204069,1.03197989,111970.0,111960.0,0.001]
[1757365204290,1.43411107,111970.0,111960.0,0.14936]
[1757365204493,1.03197989,111970.0,111960.0,0.14936]
[1757365204689,1.12389588,111970.0,111960.0,0.001]
[1757365205103,1.12389588,111970.0,111960.0,0.12664]
[1757365206373,1.12389588,111970.0,111960.0,0.14936]
[1757365208442,0.7217647,111970.0,111960.0,0.001]
[1757365208688,1.14866588,111970.0,111960.0,0.1494]
[1757365209086,1.14866588,111970.0,111960.0,0.001]
[1757365209309,1.14866588,111970.0,111960.0,0.14936]
[1757365212927,0.7465347,111970.0,111960.0,0.14936]
[1757365213137,1.14866588,111970.0,111960.0,0.14936]
[1757365216493,0.7465347,111970.0,111960.0,0.14936]
[1757365216701,1.14866588,111970.0,111960.0,0.14936]
[1757365218894,1.17547552,111970.0,111960.0,0.14936]
[1757365221731,0.77334434,111970.0,111960.0,0.14936]
[1757365221962,1.17547552,111970.0,111960.0,0.14936]
[1757365223469,0.77334434,111970.0,111960.0,0.14936]
[1757365223701,1.17547552,111970.0,111960.0,0.14936]
[1757365224381,1.17549348,111970.0,111960.0,0.14936]
[1757365227146,0.77334434,111970.0,111960.0,0.14936]
[1757365227327,1.17549348,111970.0,111960.0,0.14936]
[1757365228993,0.77334434,111970.0,111960.0,0.14936]
[1757365229130,1.17549348,111970.0,111960.0,0.14936]
[1757365231966,0.77334434,111970.0,111960.0,0.14936]
[1757365232167,1.17549348,111970.0,111960.0,0.14936]
[1757365233714,0.77334434,111970.0,111960.0,0.14936]
[1757365233923,1.17549348,111970.0,111960.0,0.14936]
[1757365234119,1.17549348,111970.0,111960.0,0.14944]
[1757365234353,0.17866714,111940.0,111930.0,0.13917212]
[1757365234532,0.2733748,111940.0,111930.0,0.28761212]
[1757365234733,0.27260313,111940.0,111930.0,0.28973835]
[1757365235180,0.27260313,111940.0,111930.0,0.21912623]
[1757365235692,0.28172501,111940.0,111930.0,0.21912623]
[1757365236164,0.28272501,111940.0,111930.0,0.22312623]
[1757365236613,0.28272501,111940.0,111930.0,0.22512623]
[1757365237015,0.28172501,111940.0,111930.0,0.22112623]
[1757365237227,0.28172501,111940.0,111930.0,0.22212623]
[1757365237383,0.28272501,111940.0,111930.0,0.22212623]
[1757365237858,0.28272501,111940.0,111930.0,0.22012623]
[1757365238154,0.27360313,111940.0,111930.0,0.22012623]
[1757365238643,0.31296747,111940.0,111930.0,0.22012623]
[1757365239170,0.31094747,111940.0,111930.0,0.22012623]
[1757365239364,0.31094747,111940.0,111930.0,0.22337623]
[1757365239589,0.31094747,111940.0,111930.0,0.22012623]
[1757365240357,0.31296747,111940.0,111930.0,0.22012623]
[1757365242056,0.31605747,111940.0,111930.0,0.22012623]
[1757365243038,0.31296747,111940.0,111930.0,0.22012623]
[1757365244450,0.40488346,111940.0,111930.0,0.22012623]
[1757365244650,0.31296747,111940.0,111930.0,0.22012623]
[1757365245304,0.31094747,111940.0,111930.0,0.22012623]
[1757365245998,0.31296747,111940.0,111930.0,0.22012623]
[1757365246250,0.31605747,111940.0,111930.0,0.22012623]
[1757365246688,0.31605747,111940.0,111930.0,0.07168623]
[1757365246689,0.33699629,111940.0,111930.0,0.07168623]
[1757365246932,1.17106142,111940.0,111930.0,0.21800623]
[1757365247391,1.1978754,111940.0,111930.0,0.21800623]
[1757365248708,0.79572626,111940.0,111930.0,0.21800623]
[1757365248953,1.1978754,111940.0,111930.0,0.21800623]
[1757365254189,1.1978754,111940.0,111930.0,0.06960623]
[1757365254395,1.1978754,111940.0,111930.0,0.21796623]
[1757365255749,0.79572626,111940.0,111930.0,0.21796623]
[1757365255950,1.1978754,111940.0,111930.0,0.21796623]
[1757365265656,1.1978754,111940.0,111930.0,0.06960623]
[1757365265859,1.1978754,111940.0,111930.0,0.21792623]
[1757365267142,1.1878754,111940.0,111930.0,0.21792623]
[1757365268475,1.1778754,111940.0,111930.0,0.21792623]
[1757365275449,0.77572626,111940.0,111930.0,0.21792623]
[1757365275654,1.08595941,111940.0,111930.0,0.21792623]
[1757365280350,0.68381027,111940.0,111930.0,0.21792623]
[1757365280563,1.08595941,111940.0,111930.0,0.21792623]
[1757365281163,1.08286941,111940.0,111930.0,0.21993623]
[1757365281376,0.67870027,111940.0,111930.0,0.22291623]
[1757365281988,0.67870027,111940.0,111930.0,0.21993623]
[1757365282516,0.68078027,111940.0,111930.0,0.21993623]
[1757365282662,0.77581626,111940.0,111930.0,0.21993623]
[1757365285167,0.77269626,111940.0,111930.0,0.21993623]
[1757365286375,1.17808579,111940.0,111930.0,0.21993623]
[1757365287106,1.17496579,111940.0,111930.0,0.21993623]
[1757365291398,0.77269626,111940.0,111930.0,0.21993623]
[1757365291521,1.17808579,111940.0,111930.0,0.21993623]
[1757365292099,1.17496579,111940.0,111930.0,0.21993623]
[1757365294341,1.17808579,111940.0,111930.0,0.21993623]
[1757365296009,1.17288579,111940.0,111930.0,0.21993623]
[1757365296221,1.17288579,111940.0,111930.0,0.22291623]
[1757365296643,0.77061626,111940.0,111930.0,0.21993623]
[1757365296798,0.67870027,111940.0,111930.0,0.22291623]
[1757365303427,1.0830698,111940.0,111930.0,0.21993623]
[1757365303636,0.68080027,111940.0,111930.0,0.21993623]
[1757365303856,1.0830698,111940.0,111930.0,0.21993623]
[1757365304064,1.14630787,111940.0,111930.0,0.21993623]
[1757365304271,0.74403834,111940.0,111930.0,0.21993623]
[1757365304415,1.14630787,111940.0,111930.0,0.21993623]
[1757365304866,1.14630787,111940.0,111930.0,0.21997623]
[1757365305071,1.14630787,111940.0,111930.0,0.07161623]
[1757365305587,0.74403834,111940.0,111930.0,0.21997623]
[1757365305748,1.14954787,111940.0,111930.0,0.21997623]
[1757365306354,1.14630787,111940.0,111930.0,0.21997623]
[1757365318913,1.14420787,111940.0,111930.0,0.21997623]
[1757365319114,1.14420787,111940.0,111930.0,0.22311623]
[1757365319937,1.14420787,111940.0,111930.0,0.22307623]
[1757365320113,1.14420787,111940.0,111930.0,0.07475623]
[1757365320418,1.0809698,111940.0,111930.0,0.07475623]
[1757365320596,1.0809698,111940.0,111930.0,0.22307623]
[1757365321666,0.67870027,111940.0,111930.0,0.22307623]
[1757365330420,0.67870027,111940.0,111930.0,0.21993623]
[1757365332012,0.67870027,111940.0,111930.0,0.22302623]
[1757365332794,0.67870027,111940.0,111930.0,0.21993623]
[1757365335035,1.0831098,111940.0,111930.0,0.21993623]
[1757365335704,1.0831098,111940.0,111930.0,0.07161623]
[1757365335910,1.0831098,111940.0,111930.0,0.21993623]
[1757365336567,1.0862498,111940.0,111930.0,0.21993623]
[1757365336790,1.16837299,111940.0,111930.0,0.21993623]
[1757365337814,0.76610346,111940.0,111930.0,0.21993623]
[1757365338020,1.0831098,111940.0,111930.0,0.21993623]
[1757365340619,1.0862498,111940.0,111930.0,0.21993623]
[1757365348139,0.68398027,111940.0,111930.0,0.21792623]
[1757365348347,1.08626334,111940.0,111930.0,0.21792623]
[1757365350108,1.08526334,111940.0,111930.0,0.21692623]
[1757365350309,1.17717933,111940.0,111930.0,0.21692623]
[1757365350511,1.18017933,111940.0,111930.0,0.21792623]
[1757365350753,1.18117933,111940.0,111930.0,0.21792623]
[1757365351177,0.77889626,111940.0,111930.0,0.21792623]
[1757365351382,0.77575626,111940.0,111930.0,0.21989623]
[1757365352225,0.77889626,111940.0,111930.0,0.21989623]
[1757365354122,1.18117933,111940.0,111930.0,0.21989623]
[1757365354326,1.17803933,111940.0,111930.0,0.21989623]
[1757365354711,0.77575626,111940.0,111930.0,0.21989623]
[1757365356093,0.77889626,111940.0,111930.0,0.21989623]
[1757365356846,0.77575626,111940.0,111930.0,0.21989623]
[1757365358778,0.77889626,111940.0,111930.0,0.21989623]
[1757365360416,0.77575626,111940.0,111930.0,0.21989623]
[1757365360540,0.77874626,111940.0,111930.0,0.21989623]
[1757365362028,0.77575626,111940.0,111930.0,0.21989623]
[1757365362864,0.77874626,111940.0,111930.0,0.21989623]
[1757365367359,0.68170027,111940.0,111930.0,0.22290623]
[1757365374263,0.68386027,111940.0,111930.0,0.21989623]
[1757365380203,0.68170027,111940.0,111930.0,0.21989623]
[1757365380502,0.68170027,111940.0,111930.0,0.22290623]
[1757365382178,0.68386027,111940.0,111930.0,0.21989623]
[1757365382369,0.77361626,111940.0,111930.0,0.21989623]
[1757365382733,0.77361626,111940.0,111930.0,0.22290623]
[1757365383401,0.77361626,111940.0,111930.0,0.21989623]
[1757365384370,0.77361626,111940.0,111930.0,0.22290623]
[1757365385091,0.77361626,111940.0,111930.0,0.21989623]
[1757365385661,0.77361626,111940.0,111930.0,0.22290623]
[1757365386638,0.68170027,111940.0,111930.0,0.22290623]
[1757365391570,0.68170027,111940.0,111930.0,0.21989623]
[1757365395812,0.68170027,111940.0,111930.0,0.22294623]
[1757365397499,0.68170027,111940.0,111930.0,0.21985623]
[1757365399053,0.68170027,111940.0,111930.0,0.22290623]
[1757365399462,0.77361626,111940.0,111930.0,0.22290623]
[1757365399681,0.62139711,111940.0,111930.0,0.22290623]
[1757365400102,0.59458313,111940.0,111930.0,0.22290623]
[1757365400351,0.59458313,111940.0,111930.0,0.24971767]
[1757365401046,0.62139456,111940.0,111930.0,0.24971767]
[1757365402267,0.59458313,111940.0,111930.0,0.24971767]
[1757365402473,0.59458313,111940.0,111930.0,0.2584567]
[1757365402712,0.59458313,111940.0,111930.0,0.24971767]
[1757365403313,0.25458313,111940.0,111930.0,0.24971767]
[1757365458608,0.09591599,111940.0,111930.0,0.42840077]
[1757365458834,0.27458313,111940.0,111930.0,0.42840077]
[1757365476037,0.27458313,111940.0,111930.0,0.10143767]
[1757365476251,0.27458313,111940.0,111930.0,0.25111155]
[1757365476468,0.27458313,111940.0,111930.0,0.24971767]
[1757365485594,0.27458313,111940.0,111930.0,0.10143767]
[1757365485811,0.27458313,111940.0,111930.0,0.24971767]
[1757365488606,0.27458313,111940.0,111930.0,0.42840077]
[1757365496740,0.27458313,111940.0,111930.0,0.24971767]
[1757365502832,0.27458313,111940.0,111930.0,0.28012077]
[1757365503052,0.27458313,111940.0,111930.0,0.42840077]
[1757365503476,0.27458313,111940.0,111930.0,0.28012077]
[1757365503673,0.27458313,111940.0,111930.0,0.42840077]
[1757365505119,0.27458313,111940.0,111930.0,0.24967767]
[1757365505524,0.27458313,111940.0,111930.0,0.42836077]
[1757365507614,0.27458313,111940.0,111930.0,0.28012077]
[1757365507909,0.27458313,111940.0,111930.0,0.42836077]
[1757365514210,0.27458313,111940.0,111930.0,0.24967767]
[1757365519033,0.27458313,111940.0,111930.0,0.10143767]
[1757365519239,0.27660313,111940.0,111930.0,0.09838767]
[1757365519466,0.68183509,111940.0,111930.0,0.24465767]
[1757365519671,0.68183509,111940.0,111930.0,0.09641767]
[1757365519871,0.68183509,111940.0,111930.0,0.24465767]
[1757365520310,0.27971313,111940.0,111930.0,0.24465767]
[1757365523102,0.27971313,111940.0,111930.0,0.09641767]
[1757365523322,0.27971313,111940.0,111930.0,0.24465767]
[1757365524557,0.27971313,111940.0,111930.0,0.09641767]
[1757365524883,0.30065195,111940.0,111930.0,0.09641767]
[1757365525101,0.30065195,111940.0,111930.0,0.24465767]
[1757365526321,0.30065195,111940.0,111930.0,0.09641767]
[1757365526479,0.30065195,111940.0,111930.0,0.24465767]
[1757365528787,0.30065195,111940.0,111930.0,0.09641767]
[1757365529025,0.30065195,111940.0,111930.0,0.24465767]
[1757365530051,0.30065195,111940.0,111930.0,0.09641767]
[1757365530260,0.30065195,111940.0,111930.0,0.24465767]
[1757365530481,0.70291139,111940.0,111930.0,0.24465767]
[1757365530935,0.70291139,111940.0,111930.0,0.09641767]
[1757365531134,0.70291139,111940.0,111930.0,0.24465767]
[1757365531840,0.70291139,111940.0,111930.0,0.09641767]
[1757365532155,0.70291139,111940.0,111930.0,0.24465767]
[1757365533293,0.70291139,111940.0,111930.0,0.09641767]
[1757365533509,0.70291139,111940.0,111930.0,0.24465767]
[1757365535029,0.30065195,111940.0,111930.0,0.24465767]
[1757365535258,0.70291139,111940.0,111930.0,0.24465767]
[1757365539500,0.30065195,111940.0,111930.0,0.24465767]
[1757365539779,0.70291139,111940.0,111930.0,0.24465767]
[1757365540976,0.30065195,111940.0,111930.0,0.24465767]
[1757365543537,0.33178793,111940.0,111930.0,0.24465767]
[1757365545087,0.70291139,111940.0,111930.0,0.24465767]
[1757365545498,0.72972391,111940.0,111930.0,0.24465767]
[1757365545679,0.72972391,111940.0,111930.0,0.21784623]
[1757365547650,0.72972391,111940.0,111930.0,0.21784623]
[1757365549153,0.32746447,111940.0,111930.0,0.21784623]
[1757365549356,0.72972391,111940.0,111930.0,0.21784623]
[1757365549543,0.8205628,111940.0,111930.0,0.06960623]
[1757365549775,0.8205628,111940.0,111930.0,0.21784623]
[1757365563872,0.8205628,111940.0,111930.0,0.21780623]
[1757365568970,0.41830336,111940.0,111930.0,0.21780623]
[1757365569380,0.8205628,111940.0,111930.0,0.21780623]
[1757365579271,0.41830336,111940.0,111930.0,0.21780623]
[1757365579480,0.32746447,111940.0,111930.0,0.21780623]
[1757365579804,0.72972391,111940.0,111930.0,0.21780623]
[1757365583595,0.32746447,111940.0,111930.0,0.21780623]
[1757365583831,0.72972391,111940.0,111930.0,0.21780623]
[1757365590415,0.32746447,111940.0,111930.0,0.21780623]
[1757365590619,0.41830329,111940.0,111930.0,0.21780623]
[1757365598016,0.39736447,111940.0,111930.0,0.21780623]
[1757365609482,0.30652565,111940.0,111930.0,0.21780623]
[1757365609825,0.30652565,111940.0,111930.0,0.21981623]
[1757365611983,0.30652565,111940.0,111930.0,0.21780623]
[1757365614152,0.30652565,111940.0,111930.0,0.21981623]
[1757365614992,0.27971313,111940.0,111930.0,0.21981623]
[1757365615229,0.36577682,111940.0,111930.0,0.21981623]
[1757365616989,0.36577682,111940.0,111930.0,0.21780623]
[1757365621862,0.27971313,111940.0,111930.0,0.21780623]
[1757365628644,0.27971313,111940.0,111930.0,0.21981623]
[1757365628869,0.27971313,111940.0,111930.0,0.21780623]
[1757365629604,0.27971313,111940.0,111930.0,0.21981623]
[1757365630783,0.27660313,111940.0,111930.0,0.21981623]
[1757365630987,0.27458313,111940.0,111930.0,0.22289623]
[1757365639857,0.27458313,111940.0,111930.0,0.2497087]
[1757365647271,0.27443813,111940.0,111930.0,0.2497087]
[1757365655247,0.29537695,111940.0,111930.0,0.2497087]
[1757365658781,0.27443813,111940.0,111930.0,0.4283918]
[1757365658980,0.27443813,111940.0,111930.0,0.2497087]
[1757365734578,0.27443813,111940.0,111930.0,0.1015087]
[1757365734788,0.27443813,111940.0,111930.0,0.25094258]
[1757365735001,0.27443813,111940.0,111930.0,0.2495487]
[1757365741430,0.27443813,111940.0,111930.0,0.1015087]
[1757365741619,0.27443813,111940.0,111930.0,0.25094258]
[1757365741912,0.27443813,111940.0,111930.0,0.2495487]
[1757365771495,0.27443813,111940.0,111930.0,0.1015087]
[1757365771633,0.27443813,111940.0,111930.0,0.25090258]
[1757365771841,0.27443813,111940.0,111930.0,0.2495087]
[1757365801497,0.004,111940.0,111930.0,0.4281918]
[1757365802854,0.001,111940.0,111930.0,0.4271918]
[1757365803395,0.17865233,111950.0,111930.0,0.4271918]
[1757365803524,0.27056832,111950.0,111940.0,0.00457356]
[1757365803723,0.27056832,111950.0,111940.0,0.00667356]
[1757365804146,0.27056832,111950.0,111940.0,0.03348128]
[1757365804704,0.27356832,111950.0,111940.0,0.03348128]
[1757365805018,0.27156832,111950.0,111940.0,0.03348128]
[1757365805167,0.27456832,111950.0,111940.0,0.03448128]
[1757365814480,0.27456832,111950.0,111940.0,0.21314842]
[1757365814690,0.27456832,111950.0,111940.0,0.21175486]
[1757365815619,0.27456832,111950.0,111940.0,0.03308772]
[1757365815853,0.27456832,111950.0,111940.0,0.0344811]
[1757365818539,0.27456832,111950.0,111940.0,0.21314824]
[1757365818686,0.27456832,111950.0,111940.0,0.21175486]
[1757365819838,0.27456832,111950.0,111940.0,0.03308772]
[1757365819979,0.27456832,111950.0,111940.0,0.0344811]
[1757365821184,0.27456832,111950.0,111940.0,0.0343511]
[1757365827602,0.27456832,111950.0,111940.0,0.21301824]
[1757365827786,0.27456832,111950.0,111940.0,0.03295772]
[1757365827988,0.27456832,111950.0,111940.0,0.0343511]
[1757365838829,0.27456832,111950.0,111940.0,0.0313011]
[1757365839191,0.27456832,111950.0,111940.0,0.1029111]
[1757365840239,0.27456832,111950.0,111940.0,0.2508711]
[1757365840458,0.27456832,111950.0,111940.0,0.24947772]
[1757365841673,0.27456832,111950.0,111940.0,0.10151772]
[1757365841891,0.27456832,111950.0,111940.0,0.2508711]
[1757365842121,0.27456832,111950.0,111940.0,0.24947772]
[1757365889132,0.27456832,111950.0,111940.0,0.42814486]
[1757365895401,0.27456832,111950.0,111940.0,0.24947772]
[1757365908483,0.27950832,111950.0,111940.0,0.24642772]
[1757365908639,0.27654832,111950.0,111940.0,0.24642772]
[1757365911087,0.27456832,111950.0,111940.0,0.24642772]
[1757365918704,0.27456832,111950.0,111940.0,0.24936772]
[1757365921000,0.27456832,111950.0,111940.0,0.24642772]
[1757365923105,0.27456832,111950.0,111940.0,0.24936772]
[1757365925547,0.27456832,111950.0,111940.0,0.42803486]
[1757365926261,0.27456832,111950.0,111940.0,0.24936772]
[1757365929489,0.27456832,111950.0,111940.0,0.24642772]
[1757365930177,0.27456832,111950.0,111940.0,0.24936772]
[1757365935806,0.27456832,111950.0,111940.0,0.42803486]
[1757365936461,0.27456832,111950.0,111940.0,0.24936772]
[1757365941193,0.27665832,111950.0,111940.0,0.24642772]
[1757365945660,0.27456832,111950.0,111940.0,0.24642772]
[1757365946394,0.27456832,111950.0,111940.0,0.24944772]
[1757365949330,0.27456832,111950.0,111940.0,0.42811486]
[1757365986070,0.09591599,111950.0,111940.0,0.42811486]
[1757365986406,0.004,111950.0,111940.0,0.42811486]
[1757365987494,0.001,111950.0,111940.0,0.42711486]
[1757365988042,0.001,111950.0,111940.0,0.42811486]
[1757365988043,0.003,111950.0,111940.0,0.42811486]
[1757365988235,0.002,111950.0,111940.0,0.42811486]
[1757365995666,0.002,111950.0,111940.0,0.50825577]
[1757365998456,0.002,111950.0,111940.0,0.42811486]
[1757366016589,0.002,111950.0,111940.0,0.50825577]
[1757366025256,0.002,111950.0,111940.0,0.50821577]
[1757366036622,0.17993486,111970.0,111950.0,0.17863931]
[1757366036799,0.09191599,111960.0,111950.0,0.180032]
[1757366037011,0.09191599,111960.0,111950.0,0.329962]
[1757366037178,0.09191599,111960.0,111950.0,0.32856931]
[1757366037375,0.09191599,111960.0,111950.0,0.35537423]
[1757366037604,0.09191599,111960.0,111950.0,0.35839423]
[1757366037965,0.09491599,111960.0,111950.0,0.35939423]
[1757366038160,0.09491599,111960.0,111950.0,0.35637423]
[1757366039729,0.09591599,111960.0,111950.0,0.35637423]
[1757366040297,0.09591599,111960.0,111950.0,0.35939423]
[1757366040504,0.004,111960.0,111950.0,0.35939423]
[1757366040711,0.004,111960.0,111950.0,0.21151423]
[1757366040912,0.004,111960.0,111950.0,0.43953514]
[1757366041332,0.001,111960.0,111950.0,0.43853514]
[1757366041763,0.001,111960.0,111950.0,0.43953514]
[1757366041978,0.18751673,111990.0,111970.0,0.17860759]
[1757366042233,0.52949673,111990.0,111980.0,0.21849]
[1757366042425,0.53270673,111990.0,111980.0,0.21849]
[1757366042569,0.52751673,111990.0,111980.0,0.21849]
[1757366043252,0.53149673,111990.0,111980.0,0.24528944]
[1757366043833,0.53349673,111990.0,111980.0,0.24528944]
[1757366044101,0.62541272,111990.0,111980.0,0.24528944]
[1757366044638,0.62341272,111990.0,111980.0,0.24528944]
[1757366044926,0.62841272,111990.0,111980.0,0.24628944]
[1757366045371,0.62643272,111990.0,111980.0,0.24628944]